[Event "*** Titled Tuesday Blitz"]
[Site "Chess.com"]
[Date "2020.11.10"]
[Round "11"]
[White "dosto07"]
[Black "andriipalchuk"]
[Result "1-0"]
[WhiteElo "2338"]
[BlackElo "2433"]
[TimeControl "180+1"]
[EndTime "12:12:14 PST"]
[Termination "dosto07 won by resignation"]

1. d4 {[%clk 0:03:00.9]} 1... Nf6 {[%clk 0:02:59.8]} 2. Nf3 {[%clk 0:02:58.3]}
2... e6 {[%clk 0:02:59.8]} 3. Bf4 {[%clk 0:02:57.8]} 3... d5 {[%clk 0:02:59.3]}
4. e3 {[%clk 0:02:57.5]} 4... c5 {[%clk 0:02:59.2]} 5. c3 {[%clk 0:02:56.7]}
5... Bd6 {[%clk 0:02:59.8]} 6. Bg3 {[%clk 0:02:55.3]} 6... O-O {[%clk
0:02:59.6]} 7. Bd3 {[%clk 0:02:55.3]} 7... Nc6 {[%clk 0:02:58.8]} 8. Nbd2 {[%clk
0:02:54.1]} 8... b6 {[%clk 0:02:59.2]} 9. Ne5 {[%clk 0:02:38.1]} 9... Ne7 {[%clk
0:02:57.4]} 10. O-O {[%clk 0:02:30.9]} 10... Bb7 {[%clk 0:02:56.8]} 11. Qe2
{[%clk 0:02:28.5]} 11... Nf5 {[%clk 0:02:56.1]} 12. Bf4 {[%clk 0:02:17.4]} 12...
Ne4 {[%clk 0:02:47.3]} 13. h3 {[%clk 0:02:03.2]} 13... f6 {[%clk 0:02:39.2]} 14.
Nef3 {[%clk 0:02:03]} 14... Nxd2 {[%clk 0:02:23.1]} 15. Qxd2 {[%clk 0:02:02.2]}
15... Ne7 {[%clk 0:02:11.9]} 16. Rfe1 {[%clk 0:01:56.9]} 16... Qc7 {[%clk
0:01:13.6]} 17. Bxd6 {[%clk 0:01:55.4]} 17... Qxd6 {[%clk 0:01:14.5]} 18. e4
{[%clk 0:01:49.7]} 18... e5 {[%clk 0:01:02.6]} 19. dxe5 {[%clk 0:01:38.9]} 19...
fxe5 {[%clk 0:01:02.3]} 20. exd5 {[%clk 0:01:35.5]} 20... Nxd5 {[%clk
0:00:31.6]} 21. Bc4 {[%clk 0:01:24.4]} 21... Rad8 {[%clk 0:00:27.9]} 22. Rad1
{[%clk 0:01:22]} 22... Qg6 {[%clk 0:00:11.6]} 23. Nxe5 {[%clk 0:01:18]} 23...
Qf5 {[%clk 0:00:07.6]} 24. Nf3 {[%clk 0:01:12]} 24... Kh8 {[%clk 0:00:06.5]} 25.
Re5 {[%clk 0:01:11.5]} 25... Qg6 {[%clk 0:00:02.7]} 26. Bxd5 {[%clk 0:01:10]}
26... Rxf3 {[%clk 0:00:02.6]} 27. Bxf3 {[%clk 0:00:51.6]} 27... Rxd2 {[%clk
0:00:03.5]} 28. Rxd2 {[%clk 0:00:48.9]} 28... h6 {[%clk 0:00:03.1]} 29. Bxb7
{[%clk 0:00:47.6]} 29... Qb1+ {[%clk 0:00:03.2]} 30. Kh2 {[%clk 0:00:46.6]}
30... Qxa2 {[%clk 0:00:03.9]} 31. Re8+ {[%clk 0:00:42.7]} 31... Kh7 {[%clk
0:00:04.3]} 32. Be4+ {[%clk 0:00:42]} 32... g6 {[%clk 0:00:05.2]} 33. Rd7+
{[%clk 0:00:40.7]} 1-0

[Event "*** Titled Tuesday Blitz"]
[Site "Chess.com"]
[Date "2020.11.10"]
[Round "11"]
[White "paulrusan"]
[Black "JiiHart"]
[Result "1-0"]
[WhiteElo "2222"]
[BlackElo "2077"]
[TimeControl "180+1"]
[EndTime "12:12:15 PST"]
[Termination "paulrusan won on time"]

1. e4 {[%clk 0:03:00.9]} 1... c5 {[%clk 0:02:59.2]} 2. b4 {[%clk 0:03:00]} 2...
cxb4 {[%clk 0:02:58.5]} 3. Bb2 {[%clk 0:02:59.8]} 3... e6 {[%clk 0:02:56.1]} 4.
a3 {[%clk 0:02:58.9]} 4... Nc6 {[%clk 0:02:54.4]} 5. axb4 {[%clk 0:02:58.9]}
5... Bxb4 {[%clk 0:02:50.6]} 6. Bxg7 {[%clk 0:02:58]} 6... Nf6 {[%clk
0:02:30.5]} 7. Bxh8 {[%clk 0:02:31.8]} 7... Nxe4 {[%clk 0:02:29.6]} 8. Qg4
{[%clk 0:02:24.7]} 8... d5 {[%clk 0:02:13.5]} 9. Qg8+ {[%clk 0:02:18.4]} 9...
Ke7 {[%clk 0:02:13.7]} 10. Qxd8+ {[%clk 0:02:16.8]} 10... Kxd8 {[%clk
0:02:13.8]} 11. f3 {[%clk 0:02:12]} 11... Nd6 {[%clk 0:02:08.8]} 12. Nc3 {[%clk
0:02:11.3]} 12... Bd7 {[%clk 0:02:06.7]} 13. Nb5 {[%clk 0:02:03]} 13... Ke7
{[%clk 0:01:51.9]} 14. Bb2 {[%clk 0:01:43.7]} 14... Rg8 {[%clk 0:01:16]} 15.
Nxa7 {[%clk 0:01:29.3]} 15... Nc4 {[%clk 0:00:46.8]} 16. Bxc4 {[%clk 0:01:25.9]}
16... dxc4 {[%clk 0:00:44.8]} 17. Nxc6+ {[%clk 0:01:21.6]} 17... Bxc6 {[%clk
0:00:44.9]} 18. Ba3 {[%clk 0:01:07.4]} 18... Bxa3 {[%clk 0:00:39.5]} 19. Rxa3
{[%clk 0:01:06.8]} 19... Rxg2 {[%clk 0:00:40.2]} 20. Ne2 {[%clk 0:00:59]} 20...
b5 {[%clk 0:00:35.3]} 21. Nd4 {[%clk 0:00:57.2]} 21... Bd7 {[%clk 0:00:29.5]}
22. Ra7 {[%clk 0:00:56]} 22... Kd6 {[%clk 0:00:24.7]} 23. c3 {[%clk 0:00:54.8]}
23... e5 {[%clk 0:00:21]} 24. Nc2 {[%clk 0:00:51.7]} 24... Rg8 {[%clk
0:00:14.8]} 25. Kf2 {[%clk 0:00:46.6]} 25... Rd8 {[%clk 0:00:12]} 26. Rg1 {[%clk
0:00:42.9]} 26... Be6 {[%clk 0:00:08]} 27. Ne3 {[%clk 0:00:42.8]} 27... Kc5
{[%clk 0:00:06.3]} 28. Ke2 {[%clk 0:00:42]} 28... Kb6 {[%clk 0:00:05.7]} 29.
Rga1 {[%clk 0:00:40]} 1-0

[Event "*** Titled Tuesday Blitz"]
[Site "Chess.com"]
[Date "2020.11.10"]
[Round "11"]
[White "maciek_92"]
[Black "Sibelephant"]
[Result "0-1"]
[WhiteElo "2786"]
[BlackElo "3075"]
[TimeControl "180+1"]
[EndTime "12:12:18 PST"]
[Termination "Sibelephant won on time"]

1. e4 {[%clk 0:03:00.9]} 1... e5 {[%clk 0:02:59.7]} 2. Nf3 {[%clk 0:02:59.5]}
2... Nc6 {[%clk 0:03:00.1]} 3. Bb5 {[%clk 0:02:59]} 3... a6 {[%clk 0:03:00.5]}
4. Ba4 {[%clk 0:02:59.1]} 4... d6 {[%clk 0:03:01.1]} 5. c3 {[%clk 0:02:57.9]}
5... Bd7 {[%clk 0:03:01.2]} 6. d4 {[%clk 0:02:58.2]} 6... g6 {[%clk 0:03:01.9]}
7. Bg5 {[%clk 0:02:48.9]} 7... f6 {[%clk 0:03:01.2]} 8. Bh4 {[%clk 0:02:46.1]}
8... h5 {[%clk 0:03:01]} 9. Bg3 {[%clk 0:02:45.3]} 9... g5 {[%clk 0:02:59.9]}
10. h4 {[%clk 0:02:44.2]} 10... g4 {[%clk 0:02:59.1]} 11. Nfd2 {[%clk
0:02:35.1]} 11... Nge7 {[%clk 0:02:43.7]} 12. Nf1 {[%clk 0:02:17.3]} 12... f5
{[%clk 0:02:37.4]} 13. dxe5 {[%clk 0:01:55.9]} 13... Nxe5 {[%clk 0:02:31.1]} 14.
Bxe5 {[%clk 0:01:53.2]} 14... dxe5 {[%clk 0:02:31.3]} 15. Ne3 {[%clk 0:01:38.6]}
15... f4 {[%clk 0:02:16.8]} 16. Nd5 {[%clk 0:01:17.8]} 16... Rh6 {[%clk
0:02:15.5]} 17. Nd2 {[%clk 0:01:02.4]} 17... c6 {[%clk 0:01:49.3]} 18. Nxe7
{[%clk 0:01:02.6]} 18... Qxe7 {[%clk 0:01:42.3]} 19. Qe2 {[%clk 0:01:02.5]}
19... O-O-O {[%clk 0:01:34.1]} 20. O-O-O {[%clk 0:01:01.1]} 20... Be8 {[%clk
0:01:22.6]} 21. Nc4 {[%clk 0:00:24.1]} 21... b5 {[%clk 0:01:05.4]} 22. Na5
{[%clk 0:00:24.3]} 22... Qc7 {[%clk 0:01:00.8]} 23. b4 {[%clk 0:00:24.2]} 23...
c5 {[%clk 0:00:51.8]} 24. Rxd8+ {[%clk 0:00:23.1]} 24... Kxd8 {[%clk 0:00:52.4]}
25. Rd1+ {[%clk 0:00:22.5]} 25... Kc8 {[%clk 0:00:52.9]} 26. Kb1 {[%clk
0:00:16.3]} 26... bxa4 {[%clk 0:00:51.2]} 27. Qc4 {[%clk 0:00:04.2]} 27... Rd6
{[%clk 0:00:48.4]} 28. Rd5 {[%clk 0:00:03]} 28... Bb5 {[%clk 0:00:32.8]} 0-1

[Event "*** Titled Tuesday Blitz"]
[Site "Chess.com"]
[Date "2020.11.10"]
[Round "11"]
[White "NikolaGry"]
[Black "ViditYT"]
[Result "1-0"]
[WhiteElo "2659"]
[BlackElo "2836"]
[TimeControl "180+1"]
[EndTime "12:12:22 PST"]
[Termination "NikolaGry won on time"]

1. e4 {[%clk 0:03:00.9]} 1... c5 {[%clk 0:03:00]} 2. Be2 {[%clk 0:02:58.8]} 2...
Nc6 {[%clk 0:02:59.7]} 3. f4 {[%clk 0:02:58.2]} 3... Nf6 {[%clk 0:02:56.1]} 4.
d3 {[%clk 0:02:57]} 4... g6 {[%clk 0:02:55.9]} 5. Nf3 {[%clk 0:02:56.3]} 5...
Bg7 {[%clk 0:02:56.4]} 6. c3 {[%clk 0:02:55.8]} 6... O-O {[%clk 0:02:56.2]} 7.
O-O {[%clk 0:02:55]} 7... Rb8 {[%clk 0:02:55.1]} 8. h3 {[%clk 0:02:47.4]} 8...
b5 {[%clk 0:02:53.8]} 9. Be3 {[%clk 0:02:44.4]} 9... d6 {[%clk 0:02:53.5]} 10.
a3 {[%clk 0:02:44.2]} 10... a5 {[%clk 0:02:51.5]} 11. Nbd2 {[%clk 0:02:43.5]}
11... Nh5 {[%clk 0:02:36.3]} 12. Qe1 {[%clk 0:02:10.9]} 12... b4 {[%clk
0:02:21]} 13. axb4 {[%clk 0:01:59.4]} 13... axb4 {[%clk 0:02:21.9]} 14. d4
{[%clk 0:01:50.8]} 14... bxc3 {[%clk 0:02:20.8]} 15. bxc3 {[%clk 0:01:50.7]}
15... cxd4 {[%clk 0:02:20.4]} 16. cxd4 {[%clk 0:01:50.6]} 16... e5 {[%clk
0:01:59.9]} 17. fxe5 {[%clk 0:01:21.2]} 17... dxe5 {[%clk 0:02:00.8]} 18. d5
{[%clk 0:01:20.6]} 18... Nd4 {[%clk 0:02:00.9]} 19. Bg5 {[%clk 0:01:04.7]} 19...
f6 {[%clk 0:01:53.3]} 20. Nxd4 {[%clk 0:01:04.3]} 20... fxg5 {[%clk 0:01:44]}
21. Rxf8+ {[%clk 0:00:53.1]} 21... Qxf8 {[%clk 0:01:32.1]} 22. Nc6 {[%clk
0:00:50.4]} 22... Rb2 {[%clk 0:01:28.7]} 23. Bxh5 {[%clk 0:00:42.9]} 23... gxh5
{[%clk 0:01:29.6]} 24. Ra8 {[%clk 0:00:40]} 24... Bf6 {[%clk 0:01:29.4]} 25. Nc4
{[%clk 0:00:33.6]} 25... Qc5+ {[%clk 0:01:28.4]} 26. Ne3 {[%clk 0:00:26.2]}
26... Qf8 {[%clk 0:01:13.7]} 27. Nf5 {[%clk 0:00:24]} 1-0

[Event "*** Titled Tuesday Blitz"]
[Site "Chess.com"]
[Date "2020.11.10"]
[Round "11"]
[White "chessmachine14"]
[Black "CzechmVIII"]
[Result "0-1"]
[WhiteElo "2263"]
[BlackElo "2140"]
[TimeControl "180+1"]
[EndTime "12:12:28 PST"]
[Termination "CzechmVIII won by resignation"]

1. e4 {[%clk 0:03:00.9]} 1... c5 {[%clk 0:02:59.4]} 2. Nf3 {[%clk 0:03:00.5]}
2... d6 {[%clk 0:02:59.6]} 3. d4 {[%clk 0:03:01.4]} 3... cxd4 {[%clk 0:03:00.2]}
4. Nxd4 {[%clk 0:03:02]} 4... Nf6 {[%clk 0:03:00.6]} 5. Nc3 {[%clk 0:03:02.7]}
5... g6 {[%clk 0:03:01.3]} 6. Be3 {[%clk 0:03:01.3]} 6... Bg7 {[%clk 0:03:01.8]}
7. f3 {[%clk 0:03:01]} 7... Nc6 {[%clk 0:03:01.9]} 8. Qd2 {[%clk 0:03:01.3]}
8... O-O {[%clk 0:03:01.9]} 9. g4 {[%clk 0:02:58.7]} 9... Be6 {[%clk 0:03:01]}
10. O-O-O {[%clk 0:02:52]} 10... Nxd4 {[%clk 0:03:00.1]} 11. Bxd4 {[%clk
0:02:51.9]} 11... Qa5 {[%clk 0:03:00.7]} 12. Kb1 {[%clk 0:02:50.9]} 12... Rfc8
{[%clk 0:02:54.3]} 13. a3 {[%clk 0:02:50.6]} 13... Rab8 {[%clk 0:02:54.3]} 14.
h4 {[%clk 0:02:48.8]} 14... b5 {[%clk 0:02:50.6]} 15. Qg5 {[%clk 0:02:48.8]}
15... Qc7 {[%clk 0:02:34.7]} 16. e5 {[%clk 0:02:35.5]} 16... h6 {[%clk
0:01:34.3]} 17. exd6 {[%clk 0:02:23.1]} 17... Qxc3 {[%clk 0:01:22.2]} 18. Bxc3
{[%clk 0:01:40.3]} 18... hxg5 {[%clk 0:01:21.4]} 19. dxe7 {[%clk 0:01:40.5]}
19... Nd5 {[%clk 0:00:52.8]} 20. Ba5 {[%clk 0:01:35.8]} 20... Nxe7 {[%clk
0:00:47.4]} 21. hxg5 {[%clk 0:01:36.4]} 21... Nc6 {[%clk 0:00:42.5]} 22. Be1
{[%clk 0:01:34.6]} 22... Nd4 {[%clk 0:00:38.5]} 23. c3 {[%clk 0:01:32.5]} 23...
Nxf3 {[%clk 0:00:36.6]} 24. Bg3 {[%clk 0:01:32.4]} 24... Be5 {[%clk 0:00:29]}
25. Bxe5 {[%clk 0:01:23.1]} 25... Nxe5 {[%clk 0:00:29.1]} 26. Bg2 {[%clk
0:01:20.9]} 26... Nxg4 {[%clk 0:00:25.9]} 27. Rh4 {[%clk 0:01:11.9]} 27... Kg7
{[%clk 0:00:22.1]} 28. Bf3 {[%clk 0:01:07.5]} 28... Rh8 {[%clk 0:00:18.3]} 29.
Rdh1 {[%clk 0:00:58.7]} 29... Rxh4 {[%clk 0:00:17.4]} 30. Rxh4 {[%clk
0:00:58.2]} 30... Ne5 {[%clk 0:00:17.4]} 31. Be2 {[%clk 0:00:56.1]} 31... Rh8
{[%clk 0:00:16.8]} 32. Re4 {[%clk 0:00:56]} 32... Nd7 {[%clk 0:00:15]} 33. Rd4
{[%clk 0:00:51.8]} 33... Nb6 {[%clk 0:00:14]} 34. Bxb5 {[%clk 0:00:50.5]} 34...
Rh5 {[%clk 0:00:14.2]} 35. c4 {[%clk 0:00:47.9]} 35... Rxg5 {[%clk 0:00:13.9]}
36. a4 {[%clk 0:00:48.1]} 36... Rg4 {[%clk 0:00:12.2]} 37. a5 {[%clk 0:00:47.8]}
37... Rxd4 {[%clk 0:00:10]} 38. axb6 {[%clk 0:00:48.1]} 38... axb6 {[%clk
0:00:10.3]} 39. b3 {[%clk 0:00:48.6]} 39... Rd2 {[%clk 0:00:10.3]} 40. Kc1
{[%clk 0:00:48.2]} 40... Rf2 {[%clk 0:00:10.5]} 41. b4 {[%clk 0:00:48.6]} 41...
g5 {[%clk 0:00:10.2]} 42. c5 {[%clk 0:00:48.3]} 42... bxc5 {[%clk 0:00:10.6]}
43. bxc5 {[%clk 0:00:49.2]} 43... g4 {[%clk 0:00:11]} 44. c6 {[%clk 0:00:50]}
44... g3 {[%clk 0:00:11.1]} 45. c7 {[%clk 0:00:50.6]} 45... g2 {[%clk
0:00:10.8]} 0-1

[Event "*** Titled Tuesday Blitz"]
[Site "Chess.com"]
[Date "2020.11.10"]
[Round "11"]
[White "Luklei18"]
[Black "lefonghua"]
[Result "0-1"]
[WhiteElo "2347"]
[BlackElo "2485"]
[TimeControl "180+1"]
[EndTime "12:12:32 PST"]
[Termination "lefonghua won on time"]

1. c4 {[%clk 0:03:00.9]} 1... Nf6 {[%clk 0:02:59.9]} 2. Nc3 {[%clk 0:03:00.2]}
2... g6 {[%clk 0:02:59.8]} 3. e4 {[%clk 0:03:00.4]} 3... d6 {[%clk 0:02:59.6]}
4. d4 {[%clk 0:03:01]} 4... Bg7 {[%clk 0:03:00.1]} 5. Nf3 {[%clk 0:03:01.7]}
5... O-O {[%clk 0:03:00.8]} 6. Be2 {[%clk 0:03:02.4]} 6... c5 {[%clk 0:03:01.2]}
7. O-O {[%clk 0:03:02]} 7... cxd4 {[%clk 0:03:00.7]} 8. Nxd4 {[%clk 0:03:02.9]}
8... Nc6 {[%clk 0:03:01.3]} 9. Be3 {[%clk 0:03:02.5]} 9... Bd7 {[%clk
0:03:01.4]} 10. Qd2 {[%clk 0:03:02]} 10... Nxd4 {[%clk 0:03:00]} 11. Bxd4 {[%clk
0:03:02.3]} 11... Bc6 {[%clk 0:03:00.7]} 12. f3 {[%clk 0:03:02.8]} 12... a5
{[%clk 0:03:01.3]} 13. b3 {[%clk 0:03:02.9]} 13... Nd7 {[%clk 0:03:01.5]} 14.
Be3 {[%clk 0:03:03.3]} 14... Nc5 {[%clk 0:03:01.9]} 15. Rab1 {[%clk 0:03:01.7]}
15... Qb6 {[%clk 0:03:01.6]} 16. Rfc1 {[%clk 0:03:01.6]} 16... Rfc8 {[%clk
0:03:01.4]} 17. Bf1 {[%clk 0:02:52.1]} 17... Qd8 {[%clk 0:02:59.5]} 18. g3
{[%clk 0:02:50]} 18... h5 {[%clk 0:02:54.9]} 19. a3 {[%clk 0:02:43.1]} 19... h4
{[%clk 0:02:37.6]} 20. b4 {[%clk 0:02:24.7]} 20... axb4 {[%clk 0:02:33.2]} 21.
axb4 {[%clk 0:02:25.6]} 21... Na4 {[%clk 0:02:33.2]} 22. Nd5 {[%clk 0:02:15.6]}
22... hxg3 {[%clk 0:02:22.4]} 23. hxg3 {[%clk 0:02:15.5]} 23... Bxd5 {[%clk
0:02:07.8]} 24. exd5 {[%clk 0:02:11.6]} 24... Qd7 {[%clk 0:02:06.6]} 25. Bd4
{[%clk 0:02:05.6]} 25... Qf5 {[%clk 0:01:55.3]} 26. Bxg7 {[%clk 0:01:58]} 26...
Kxg7 {[%clk 0:01:56.2]} 27. Qd4+ {[%clk 0:01:42.4]} 27... Qf6 {[%clk 0:01:53.8]}
28. Qxf6+ {[%clk 0:00:55.8]} 28... Kxf6 {[%clk 0:01:54.7]} 29. Rc2 {[%clk
0:00:56.4]} 29... Nb6 {[%clk 0:01:47]} 30. Rbc1 {[%clk 0:00:38.7]} 30... Ra4
{[%clk 0:01:37.8]} 31. c5 {[%clk 0:00:37.5]} 31... dxc5 {[%clk 0:01:29.5]} 32.
bxc5 {[%clk 0:00:20.9]} 32... Nxd5 {[%clk 0:01:28.6]} 33. c6 {[%clk 0:00:21.5]}
33... Rxc6 {[%clk 0:01:23.7]} 34. Rxc6+ {[%clk 0:00:22.4]} 34... bxc6 {[%clk
0:01:24.4]} 35. Rxc6+ {[%clk 0:00:23.3]} 35... e6 {[%clk 0:01:24.2]} 36. Kf2
{[%clk 0:00:20.8]} 36... Ra2+ {[%clk 0:01:21.1]} 37. Be2 {[%clk 0:00:20.6]}
37... g5 {[%clk 0:01:19.1]} 38. Rc4 {[%clk 0:00:17.4]} 38... Rb2 {[%clk
0:01:12.3]} 39. f4 {[%clk 0:00:17.7]} 39... gxf4 {[%clk 0:01:08.3]} 40. gxf4
{[%clk 0:00:18.6]} 40... Ne7 {[%clk 0:01:06.2]} 41. Kf3 {[%clk 0:00:17.9]} 41...
Rb3+ {[%clk 0:01:05.8]} 42. Kf2 {[%clk 0:00:16.2]} 42... Nd5 {[%clk 0:01:05.9]}
43. Bf3 {[%clk 0:00:15.3]} 43... Rb2+ {[%clk 0:01:02.1]} 44. Kg3 {[%clk
0:00:15.6]} 44... Ne3 {[%clk 0:01:00.2]} 45. Rc3 {[%clk 0:00:15.4]} 45... Nf5+
{[%clk 0:00:58.4]} 46. Kg4 {[%clk 0:00:12.5]} 46... Rh2 {[%clk 0:00:56.8]} 0-1

[Event "*** Titled Tuesday Blitz"]
[Site "Chess.com"]
[Date "2020.11.10"]
[Round "11"]
[White "Zhigalko_Sergei"]
[Black "Supernotar"]
[Result "1-0"]
[WhiteElo "2936"]
[BlackElo "2856"]
[TimeControl "180+1"]
[EndTime "12:12:33 PST"]
[Termination "Zhigalko_Sergei won by resignation"]

1. e4 {[%clk 0:03:00.9]} 1... c6 {[%clk 0:02:59.8]} 2. d4 {[%clk 0:03:00.9]}
2... d5 {[%clk 0:03:00.1]} 3. e5 {[%clk 0:03:01.4]} 3... Bf5 {[%clk 0:03:00.4]}
4. Nf3 {[%clk 0:03:01.5]} 4... e6 {[%clk 0:03:00.6]} 5. Be2 {[%clk 0:03:01.4]}
5... Nd7 {[%clk 0:03:00.9]} 6. O-O {[%clk 0:03:01.3]} 6... h6 {[%clk 0:03:01.4]}
7. Nbd2 {[%clk 0:03:01.1]} 7... Ne7 {[%clk 0:03:01.7]} 8. a4 {[%clk 0:02:56.2]}
8... Bg6 {[%clk 0:03:01.4]} 9. a5 {[%clk 0:02:53.2]} 9... Nf5 {[%clk 0:03:01.1]}
10. c3 {[%clk 0:02:52.9]} 10... Be7 {[%clk 0:03:00.9]} 11. g4 {[%clk 0:02:48.8]}
11... Nh4 {[%clk 0:03:00.5]} 12. Nxh4 {[%clk 0:02:49.3]} 12... Bxh4 {[%clk
0:03:00.6]} 13. f4 {[%clk 0:02:50.2]} 13... f5 {[%clk 0:02:57.8]} 14. exf6
{[%clk 0:02:43.4]} 14... Bxf6 {[%clk 0:02:44.6]} 15. Nf3 {[%clk 0:02:32.9]}
15... Qc7 {[%clk 0:02:36.9]} 16. a6 {[%clk 0:02:19.4]} 16... b6 {[%clk
0:02:34.1]} 17. Bd3 {[%clk 0:02:19.5]} 17... Bxd3 {[%clk 0:02:09.2]} 18. Qxd3
{[%clk 0:02:19.4]} 18... O-O-O {[%clk 0:02:09.3]} 19. Bd2 {[%clk 0:02:10.2]}
19... g5 {[%clk 0:02:00.7]} 20. Ne5 {[%clk 0:01:57]} 20... Rhf8 {[%clk
0:01:28.6]} 21. Ng6 {[%clk 0:01:47.7]} 21... Rfe8 {[%clk 0:01:20.8]} 22. Rae1
{[%clk 0:01:38.8]} 22... Qd6 {[%clk 0:01:15.9]} 23. b4 {[%clk 0:01:19.3]} 23...
b5 {[%clk 0:01:12.3]} 24. Qh3 {[%clk 0:01:17.7]} 24... gxf4 {[%clk 0:00:58.9]}
25. Bxf4 {[%clk 0:01:10]} 25... e5 {[%clk 0:00:57.9]} 26. dxe5 {[%clk
0:01:07.3]} 26... Bxe5 {[%clk 0:00:51.7]} 27. Nxe5 {[%clk 0:01:04.1]} 27... Rxe5
{[%clk 0:00:34.5]} 28. Qg3 {[%clk 0:00:44.9]} 28... Rde8 {[%clk 0:00:31.8]} 29.
Bxe5 {[%clk 0:00:45]} 29... Nxe5 {[%clk 0:00:28.9]} 30. Kg2 {[%clk 0:00:28.5]}
30... d4 {[%clk 0:00:28.1]} 31. Rf5 {[%clk 0:00:22.4]} 31... Qd5+ {[%clk
0:00:24]} 32. Kh3 {[%clk 0:00:22.1]} 32... h5 {[%clk 0:00:20.9]} 33. Rfxe5
{[%clk 0:00:18.6]} 33... hxg4+ {[%clk 0:00:20.7]} 34. Qxg4+ {[%clk 0:00:18.8]}
1-0

[Event "*** Titled Tuesday Blitz"]
[Site "Chess.com"]
[Date "2020.11.10"]
[Round "11"]
[White "tlomigtlis"]
[Black "eightbyeightchess"]
[Result "1-0"]
[WhiteElo "2584"]
[BlackElo "2412"]
[TimeControl "180+1"]
[EndTime "12:12:36 PST"]
[Termination "tlomigtlis won by resignation"]

1. d4 {[%clk 0:03:00.9]} 1... d5 {[%clk 0:02:56.4]} 2. c4 {[%clk 0:03:01.2]}
2... c6 {[%clk 0:02:47.7]} 3. Nf3 {[%clk 0:03:00.9]} 3... Nf6 {[%clk 0:02:46.9]}
4. Nc3 {[%clk 0:03:01.2]} 4... dxc4 {[%clk 0:02:46.8]} 5. a4 {[%clk 0:03:00.6]}
5... Bf5 {[%clk 0:02:44.1]} 6. Ne5 {[%clk 0:03:01]} 6... Nbd7 {[%clk 0:02:36.9]}
7. Nxc4 {[%clk 0:03:00.5]} 7... Qc7 {[%clk 0:02:36.8]} 8. g3 {[%clk 0:03:00.3]}
8... e5 {[%clk 0:02:37.2]} 9. dxe5 {[%clk 0:03:00.6]} 9... Nxe5 {[%clk
0:02:38.1]} 10. Bf4 {[%clk 0:03:00.6]} 10... Nfd7 {[%clk 0:02:38.4]} 11. Bg2
{[%clk 0:03:00.6]} 11... f6 {[%clk 0:02:37.6]} 12. O-O {[%clk 0:02:59.8]} 12...
g5 {[%clk 0:02:37.8]} 13. Ne3 {[%clk 0:02:58.8]} 13... Be6 {[%clk 0:02:34.2]}
14. Bxe5 {[%clk 0:02:58.1]} 14... Qxe5 {[%clk 0:02:29.8]} 15. a5 {[%clk
0:02:47.1]} 15... a6 {[%clk 0:02:20.3]} 16. Qa4 {[%clk 0:02:36.1]} 16... Bc5
{[%clk 0:02:05.6]} 17. Ng4 {[%clk 0:02:24.5]} 17... Qd4 {[%clk 0:01:58.1]} 18.
h3 {[%clk 0:02:01.1]} 18... h5 {[%clk 0:01:46.2]} 19. Ne3 {[%clk 0:01:50.3]}
19... O-O-O {[%clk 0:01:42.2]} 20. Qc2 {[%clk 0:01:25.5]} 20... h4 {[%clk
0:01:35.9]} 21. Rfd1 {[%clk 0:01:24.4]} 21... Qe5 {[%clk 0:01:35.5]} 22. g4
{[%clk 0:01:22.2]} 22... Bxe3 {[%clk 0:01:33.6]} 23. fxe3 {[%clk 0:01:23.1]}
23... Qxe3+ {[%clk 0:01:34.3]} 24. Kh1 {[%clk 0:01:23.6]} 24... Ne5 {[%clk
0:01:29.2]} 25. Ne4 {[%clk 0:01:22.2]} 25... Rxd1+ {[%clk 0:01:22.8]} 26. Rxd1
{[%clk 0:01:23.1]} 26... Bb3 {[%clk 0:01:22.6]} 27. Qd2 {[%clk 0:01:10.9]} 27...
Qxd2 {[%clk 0:01:17.4]} 28. Rxd2 {[%clk 0:01:11.8]} 28... Nc4 {[%clk 0:01:09.7]}
29. Rd3 {[%clk 0:01:04.6]} 29... Nxa5 {[%clk 0:01:09.3]} 30. Nxf6 {[%clk
0:01:03]} 30... Rf8 {[%clk 0:01:05.4]} 31. Nh7 {[%clk 0:00:56]} 31... Re8 {[%clk
0:00:54]} 32. e4 {[%clk 0:00:50.9]} 32... Bc2 {[%clk 0:00:46.7]} 33. Re3 {[%clk
0:00:43.7]} 33... Re5 {[%clk 0:00:41.4]} 34. Nf8 {[%clk 0:00:38]} 34... b5
{[%clk 0:00:21.2]} 35. Re2 {[%clk 0:00:37.8]} 35... Bd3 {[%clk 0:00:17.1]} 36.
Re3 {[%clk 0:00:37.9]} 36... Bb1 {[%clk 0:00:17.3]} 37. Kh2 {[%clk 0:00:37.9]}
37... Nc4 {[%clk 0:00:17.4]} 38. Re1 {[%clk 0:00:37.6]} 38... Bd3 {[%clk
0:00:14.8]} 39. b3 {[%clk 0:00:37.8]} 39... Nd6 {[%clk 0:00:13.1]} 40. Rd1
{[%clk 0:00:36]} 40... Nxe4 {[%clk 0:00:05.6]} 41. Rxd3 {[%clk 0:00:35.5]} 41...
Nc5 {[%clk 0:00:05.3]} 42. Rd6 {[%clk 0:00:35.3]} 42... Kc7 {[%clk 0:00:04.6]}
43. Rxc6+ {[%clk 0:00:35.4]} 1-0